bitfinex/quotes_SOLUSD_20260228
["timestamp","ask_amount","ask_price","bid_price","bid_amount"]
[1772289898636,12.30648059,81.258,81.19,1.23167877]
[1772289898637,0.79540967,81.257,81.204,0.79180505]
[1772289898841,0.79540967,81.239,81.204,0.79180505]
[1772289899354,0.79540967,81.246,81.211,0.79180505]
[1772289899529,0.79540967,81.266,81.221,0.79180505]
[1772289899834,16.2200877,81.27,81.212,12.31345121]
[1772289899835,0.79540967,81.264,81.231,0.79180505]
[1772289900639,12.30572339,81.263,81.231,0.79180505]
[1772289900835,0.79540967,81.262,81.231,0.79180505]
[1772289901036,0.79540967,81.262,81.222,0.79180505]
[1772289901253,0.79540967,81.239,81.212,0.79180505]
[1772289901858,0.79540967,81.239,81.19,16.2200877]
[1772289901859,16.2200877,81.23,81.19,16.2200877]
[1772289902049,0.79540967,81.219,81.181,12.31815326]
[1772289902358,239.9616061,81.263,81.18,0.2]
[1772289902359,0.79540967,81.209,81.18,0.2]
[1772289902735,0.79540967,81.227,81.19,16.2200877]
[1772289903557,0.79540967,81.227,81.2,16.2200877]
[1772289903946,0.79540967,81.227,81.191,0.79180505]
[1772289904540,16.2200877,81.2,81.18,0.2]
[1772289904742,12.3154226,81.199,81.18,0.2]
[1772289904941,0.79540967,81.189,81.17,0.2]
[1772289905346,13.11083227,81.199,81.172,0.79180505]
[1772289905546,13.11083227,81.199,81.17,0.2]
[1772289905547,16.2200877,81.19,81.17,0.2]
[1772289905745,16.2200877,81.19,81.171,12.31967081]
[1772289905950,0.79540967,81.198,81.172,0.79180505]
[1772289906341,0.79540967,81.198,81.171,12.31967081]
[1772289906342,17.01549737,81.22,81.181,0.79180505]
[1772289906861,0.79540967,81.229,81.193,0.79180505]
[1772289907059,0.79540967,81.238,81.201,0.79180505]
[1772289907234,0.79540967,81.238,81.192,43.10769533]
[1772289907235,0.79540967,81.247,81.21,16.2200877]
[1772289907442,13.10370744,81.247,81.211,0.79180505]
[1772289908042,16.2200877,81.26,81.221,0.79180505]
[1772289908345,12.30526839,81.267,81.231,0.79180505]
[1772289908945,0.79540967,81.267,81.233,0.79180505]
[1772289909147,12.30481487,81.269,81.233,0.79180505]
[1772289910072,16.2200877,81.27,81.241,0.79180505]
[1772289910370,61.24917384,81.322,81.232,43.08646837]
[1772289910371,0.79540967,81.284,81.251,0.79180505]
[1772289910568,0.80154815,81.299,81.261,0.86815382]
[1772289910875,0.80154815,81.307,81.272,13.17251448]
[1772289911057,0.80154815,81.307,81.273,0.86815382]
[1772289911255,16.2200877,81.3,81.273,0.86815382]
[1772289911455,61.47138403,81.339,81.272,12.30436066]
[1772289911456,0.80154815,81.345,81.291,0.86815382]
[1772289911663,0.80154815,81.329,81.291,0.86815382]
[1772289912160,0.80154815,81.329,81.3,16.2200877]
[1772289912855,0.80154815,81.329,81.301,12.29997171]
[1772289913359,3.69383402,81.359,81.301,12.29997171]
[1772289913360,0.80154815,81.349,81.301,43.04990098]
[1772289913669,0.80154815,81.339,81.302,0.86815382]
[1772289913876,17.02163585,81.33,81.302,0.86815382]
[1772289914255,0.80154815,81.33,81.302,0.86815382]
[1772289914456,49.15987877,81.368,81.301,12.29997171]
[1772289914457,0.80154815,81.348,81.311,0.86815382]
[1772289915075,0.80154815,81.346,81.312,12.29830775]
[1772289915271,0.80154815,81.346,81.313,0.86815382]
[1772289915573,0.80154815,81.356,81.321,0.86815382]
[1772289916263,0.80154815,81.349,81.313,0.86815382]
[1772289916572,0.80154815,81.358,81.321,0.86815382]
[1772289917054,0.80154815,81.358,81.33,16.2200877]
[1772289917251,61.91907699,81.404,81.322,43.03878408]
[1772289917252,0.80154815,81.367,81.331,0.86815382]
[1772289917772,0.80154815,81.367,81.33,16.2200877]
[1772289917773,16.2200877,81.34,81.313,12.2981565]
[1772289918249,0.80154815,81.366,81.321,0.86815382]
[1772289918456,0.1,81.37,81.341,0.86815382]
[1772289918672,12.28969263,81.369,81.341,0.86815382]
[1772289918861,0.80154815,81.368,81.331,0.86815382]
[1772289919174,0.80154815,81.368,81.34,17.08824152]
[1772289919970,0.80154815,81.368,81.341,0.86815382]
[1772289920172,12.28999471,81.367,81.341,0.86815382]
[1772289920374,0.1,81.37,81.341,0.86815382]
[1772289921175,0.1,81.37,81.343,0.86815382]
[1772289921771,0.1,81.37,81.342,12.29377197]
[1772289921772,16.2200877,81.36,81.332,0.86815382]
[1772289921975,16.2200877,81.36,81.333,12.29513235]
[1772289922372,0.80154815,81.369,81.334,0.86815382]
[1772289923275,0.1,81.37,81.341,0.86815382]
[1772289923664,12.38966471,81.37,81.341,0.86815382]
[1772289923861,0.1,81.37,81.341,0.86815382]
[1772289925979,0.1,81.37,81.331,0.86815382]
[1772289925980,0.80154815,81.369,81.331,0.86815382]
[1772289926195,0.80154815,81.369,81.332,0.86815382]
[1772289928069,13.09139182,81.368,81.334,0.86815382]
[1772289928281,0.80154815,81.368,81.334,0.86815382]
[1772289929385,0.80154815,81.368,81.302,50.42872711]
[1772289929386,0.80154815,81.339,81.304,0.86815382]
[1772289929567,16.2200877,81.32,81.291,13.1696386]
[1772289929887,16.2200877,81.32,81.292,0.86815382]
[1772289930077,12.2972491,81.319,81.292,0.86815382]
[1772289930285,0.80154815,81.329,81.294,0.86815382]
[1772289930577,13.09582975,81.339,81.301,0.86815382]
[1772289930782,0.80154815,81.338,81.301,0.86815382]
[1772289931571,0.80154815,81.338,81.311,0.86815382]
[1772289932271,3.69383402,81.369,81.283,1.23026955]
[1772289932272,0.80154815,81.349,81.313,0.86815382]
[1772289932677,13.09433032,81.349,81.313,0.86815382]
[1772289933194,0.80154815,81.358,81.321,0.86815382]
[1772289933390,0.80154815,81.378,81.341,0.86815382]
[1772289934392,0.80154815,81.378,81.343,0.86815382]
[1772289934607,16.3200877,81.39,81.351,0.86815382]
[1772289934887,16.3200877,81.39,81.361,0.86815382]
[1772289934888,0.90154815,81.39,81.361,0.86815382]
[1772289935072,0.90154815,81.39,81.35,16.2200877]
[1772289935073,0.80154815,81.389,81.35,16.2200877]
[1772289935270,0.80154815,81.379,81.344,0.86815382]
[1772289935998,16.2200877,81.36,81.332,0.86815382]
[1772289936782,0.80154815,81.361,81.333,43.90111706]
[1772289936982,0.80154815,81.361,81.334,0.86815382]
[1772289937183,0.80154815,81.36,81.329,12.29570276]
[1772289937391,0.80154815,81.359,81.329,12.29570276]
[1772289937798,0.80154815,81.359,81.324,12.29640858]
[1772289938185,17.02163585,81.35,81.324,12.29640858]
[1772289938906,0.80154815,81.349,81.324,12.29640858]
[1772289939720,0.80154815,81.349,81.31,16.2200877]
[1772289939721,0.80154815,81.339,81.31,12.29855087]
[1772289939917,0.80154815,81.339,81.304,12.29938262]
[1772289940405,0.80154815,81.357,81.321,0.86815382]
[1772289940608,0.84982207,81.359,81.33,16.2200877]
[1772289940814,30.71764622,81.387,81.321,0.89361307]
[1772289940815,17.06990977,81.35,81.321,0.89361307]
[1772289941105,0.84982207,81.348,81.318,12.297364]
[1772289941286,12.2927141,81.349,81.314,12.29791226]
[1772289941287,0.84982207,81.339,81.314,12.29791226]
[1772289941782,12.2927141,81.349,81.314,12.29791226]
[1772289941783,0.84982207,81.361,81.32,16.2200877]
[1772289941993,0.84982207,81.369,81.331,0.89361307]
[1772289942789,16.2200877,81.36,81.331,0.89361307]
[1772289943085,16.2200877,81.36,81.332,12.29528352]
[1772289943285,16.18613773,81.36,81.332,12.29528352]
[1772289943495,29.32701191,81.36,81.332,12.29528352]
[1772289943699,0.84982207,81.359,81.332,12.29528352]
[1772289947721,0.87821186,81.358,81.332,12.29528352]
[1772289948411,0.87821186,81.358,81.332,43.03349234]
[1772289948815,0.87821186,81.387,81.353,0.86771917]
[1772289949112,0.87821186,81.387,81.36,16.18613773]
[1772289949508,0.87821186,81.387,81.353,0.86771917]
[1772289949737,12.28712554,81.386,81.36,16.18613773]
[1772289950015,0.87821186,81.387,81.36,16.18613773]
[1772289950598,13.16520117,81.387,81.36,0.86771917]
[1772289950812,0.87821186,81.387,81.36,17.0538569]
[1772289951012,0.87821186,81.387,81.361,11.67619348]
[1772289952731,0.87821186,81.379,81.34,16.18613773]
[1772289952901,0.87821186,81.379,81.341,0.86771917]
[1772289953217,16.28613773,81.39,81.341,0.86771917]
[1772289953218,0.87821186,81.377,81.341,0.86771917]
[1772289953399,43.00916709,81.378,81.341,0.86771917]
[1772289953400,0.87821186,81.369,81.341,0.86771917]
[1772289953601,0.87821186,81.387,81.351,0.86771917]
[1772289953801,0.87821186,81.387,81.35,16.18613773]
[1772289953802,0.87821186,81.379,81.343,0.86771917]
[1772289955225,0.87821186,81.377,81.345,0.86771917]
[1772289957425,16.18613773,81.38,81.346,12.29316745]
[1772289957426,0.87821186,81.375,81.346,12.29316745]
[1772289957605,0.87821186,81.375,81.35,17.0538569]
[1772289957919,0.87821186,81.389,81.36,16.18613773]
[1772289958121,0.85808648,81.379,81.346,12.29316745]
[1772289958298,12.28667264,81.389,81.321,0.90967171]
[1772289958299,0.85808648,81.359,81.321,0.90967171]
[1772289959304,0.85808648,81.359,81.322,0.90967171]
[1772289959622,0.85808648,81.349,81.31,16.18613773]
[1772289959800,0.85808648,81.339,81.303,0.90967171]
[1772289960829,3.69383402,81.379,81.302,43.04937147]
[1772289960830,0.85808648,81.367,81.331,0.90967171]
[1772289961122,0.85808648,81.376,81.341,0.90967171]
[1772289961321,3.69383402,81.398,81.304,1.22995178]
[1772289961322,0.85808648,81.389,81.362,0.90967171]
[1772289961627,0.85808648,81.389,81.37,16.18613773]
[1772289961831,0.1,81.4,81.37,16.18613773]
[1772289962427,12.28546113,81.398,81.37,16.18613773]
[1772289962819,12.28618195,81.393,81.362,0.90967171]
[1772289963303,12.2855576,81.397,81.363,12.29059892]
[1772289963923,12.2855576,81.397,81.363,13.20027063]
[1772289964123,0.1,81.4,81.37,16.18613773]
[1772289964427,0.1,81.4,81.38,16.18613773]
[1772289964822,0.1,81.4,81.371,0.90967171]
[1772289965432,0.85808648,81.399,81.361,12.29090104]
[1772289965618,0.85808648,81.369,81.332,0.90967171]
[1772289966330,0.85808648,81.349,81.311,0.90967171]
[1772289967422,0.85808648,81.349,81.313,0.90967171]
[1772289967730,0.85808648,81.392,81.331,0.90967171]
[1772289967913,0.85808648,81.369,81.331,0.90967171]
[1772289968228,43.00124088,81.393,81.341,0.90967171]
[1772289968229,0.85808648,81.379,81.341,0.90967171]
[1772289968520,0.85808648,81.379,81.35,16.18613773]
[1772289968725,0.85808648,81.379,81.341,0.90967171]
[1772289968930,0.85808648,81.379,81.35,16.18613773]
[1772289969426,0.85808648,81.377,81.345,12.29329043]
[1772289971420,12.28863546,81.376,81.345,12.29329043]
[1772289971733,0.93200476,81.375,81.346,0.86768657]
[1772289972111,0.93200476,81.375,81.345,12.29329043]
[1772289972608,16.18613773,81.37,81.345,12.29329043]
[1772289973009,0.93200476,81.375,81.346,0.86768657]
[1772289974634,0.93200476,81.375,81.347,12.29301633]
[1772289974926,0.93200476,81.373,81.347,12.29301633]
[1772289975135,0.93200476,81.369,81.335,0.86768657]
[1772289975520,43.01128123,81.374,81.341,0.86768657]
[1772289975521,12.28893749,81.374,81.341,0.86768657]
[1772289975708,12.28893749,81.374,81.334,43.03243415]
[1772289975709,0.93200476,81.399,81.351,0.86768657]
[1772289975908,16.18613773,81.39,81.361,0.86768657]
[1772289976113,0.93200476,81.389,81.361,0.86768657]
[1772289976717,0.93200476,81.389,81.353,12.29210969]
[1772289976921,0.93200476,81.387,81.353,12.29210969]
[1772289977128,0.93200476,81.379,81.344,13.16115627]
[1772289977436,0.93200476,81.379,81.344,43.89483054]
[1772289977630,0.93200476,81.379,81.351,0.86768657]
[1772289977937,0.93200476,81.379,81.345,0.86768657]
[1772289978836,0.93200476,81.369,81.341,12.29392311]
[1772289979221,0.93200476,81.369,81.341,13.16160968]
[1772289979528,0.93200476,81.369,81.342,0.86768657]
[1772289980042,0.93200476,81.378,81.342,0.86768657]
[1772289980441,0.93200476,81.389,81.351,0.86768657]
[1772289980737,0.93200476,81.389,81.341,43.02873089]
[1772289980738,12.28786822,81.382,81.353,0.86768657]
[1772289982333,46.90244194,81.39,81.354,12.2919586]
[1772289982334,0.93200476,81.387,81.354,12.2919586]
[1772289982541,17.11814249,81.38,81.354,12.2919586]
[1772289983732,12.28682361,81.388,81.333,0.86768657]
[1772289983733,0.93200476,81.369,81.333,0.86768657]
[1772289983943,0.93200476,81.349,81.309,0.86768657]
[1772289984123,144.99230553,81.388,81.308,12.29891277]
[1772289984124,0.93200476,81.339,81.308,12.29891277]
[1772289984442,16.18613773,81.34,81.303,12.29966913]
[1772289984443,0.93200476,81.337,81.303,12.29966913]
[1772289984762,0.93200476,81.329,81.295,0.86768657]
[1772289986536,12.29588825,81.328,81.296,12.3007282]
[1772289986748,12.29588825,81.328,81.297,0.86768657]
[1772289987240,13.22789301,81.328,81.297,0.86768657]
[1772289987921,13.22789301,81.328,81.273,12.30420926]
[1772289987922,0.93200476,81.309,81.273,12.30420926]
[1772289988126,0.93200476,81.309,81.265,0.86768657]
[1772289988127,0.93200476,81.299,81.271,12.30451206]
[1772289988522,0.93200476,81.288,81.26,12.30606623]
[1772289988727,0.93200476,81.288,81.254,0.86768657]
[1772289989123,16.18613773,81.28,81.255,12.30693495]
[1772289989528,16.18613773,81.28,81.24,16.38613773]
[1772289989529,0.93200476,81.279,81.249,12.30779145]
[1772289989731,0.93200476,81.288,81.251,0.86768657]
[1772289990423,12.30178744,81.289,81.249,12.30779145]
[1772289990424,0.93200476,81.291,81.249,0.86768657]
[1772289990624,0.93200476,81.299,81.26,17.0538243]
[1772289990825,0.93200476,81.299,81.261,0.86768657]
[1772289991231,0.93200476,81.306,81.271,0.86768657]
[1772289993851,0.93200476,81.299,81.272,12.30436066]
[1772289996063,0.93200476,81.298,81.272,12.30436066]
[1772289997252,0.93200476,81.309,81.271,0.86768657]
[1772289997455,0.36,81.881,81.266,30.76282997]
[1772289997456,0.93200476,81.319,81.281,0.86768657]
[1772289997647,0.93200476,81.309,81.281,0.86768657]
[1772289997851,0.93200476,81.309,81.27,16.18613773]
[1772289997852,0.93200476,81.309,81.271,0.86768657]
[1772289999765,49.17602129,81.341,81.268,61.5]
[1772289999766,16.18613773,81.34,81.301,0.86768657]
[1772289999964,0.93200476,81.334,81.301,0.86768657]
[1772290000161,0.93200476,81.329,81.273,0.86768657]
[1772290000459,0.93200476,81.329,81.291,0.86768657]
[1772290000837,0.86535335,81.309,81.281,0.87454295]
[1772290001940,0.86535335,81.289,81.254,0.87454295]
[1772290002139,16.18613773,81.28,81.255,12.30693495]
[1772290002345,0.86535335,81.289,81.254,13.18154256]
[1772290002551,43.04619471,81.308,81.246,0.87454295]
[1772290002552,0.86535335,81.279,81.246,0.87454295]
[1772290002751,0.86535335,81.279,81.248,0.87454295]
[1772290003965,13.1687191,81.279,81.249,12.30784378]
[1772290004634,12.30336575,81.279,81.249,12.30784378]
[1772290004839,0.88510607,81.278,81.249,12.30784378]
[1772290005055,17.10488572,81.3,81.261,0.94817879]
[1772290005258,17.10488572,81.3,81.249,104.61667219]
[1772290005259,0.88510607,81.3,81.271,0.94817879]
[1772290006142,0.88510607,81.3,81.272,12.30436066]
[1772290007059,12.298459,81.311,81.281,0.94817879]
[1772290007466,0.88510607,81.309,81.281,0.94817879]
[1772290008162,0.88510607,81.307,81.272,0.94817879]
[1772290008359,0.88510607,81.299,81.263,0.94817879]
[1772290010371,0.88510607,81.299,81.264,43.06950186]
[1772290010849,0.88510607,81.297,81.264,43.06950186]
[1772290011465,0.88510607,81.297,81.265,0.94817879]
[1772290012358,0.88510607,81.297,81.267,0.94817879]
[1772290012559,12.29988746,81.302,81.271,0.94817879]
[1772290013575,0.88510607,81.299,81.272,12.30436066]
[1772290015263,0.88510607,81.299,81.241,61.5]
[1772290015264,0.88510607,81.297,81.243,0.94817879]
[1772290015470,0.88510607,81.289,81.243,0.94817879]
[1772290015656,0.88510607,81.289,81.251,0.94817879]
[1772290016758,0.88510607,81.279,81.248,12.30785628]
[1772290017376,0.88510607,81.279,81.251,0.94817879]
[1772290018681,12.30345234,81.278,81.252,12.30738935]
[1772290019682,0.88510607,81.277,81.248,12.30791616]
[1772290019881,0.88510607,81.269,81.244,12.30857064]
[1772290020064,0.88510607,81.269,81.24,0.2]
[1772290020256,0.88510607,81.259,81.24,0.2]
[1772290020754,0.88510607,81.259,81.221,30.78013911]
[1772290020755,0.88510607,81.249,81.221,30.78013911]
[1772290020961,16.21977965,81.27,81.231,0.94817879]
[1772290021182,7.82536341,81.299,81.241,0.94817879]
[1772290021183,43.05996406,81.282,81.241,0.94817879]
[1772290021483,30.75273567,81.294,81.251,0.94817879]
[1772290021685,16.21977965,81.29,81.251,0.94817879]
[1772290022781,30.75273567,81.294,81.253,0.94817879]
[1772290024980,30.75273567,81.294,81.255,0.94817879]
[1772290025184,31.63784174,81.294,81.255,0.94817879]
[1772290026184,0.88510607,81.294,81.255,0.94817879]
[1772290026384,16.21977965,81.29,81.255,0.94817879]
[1772290026680,0.88510607,81.289,81.255,0.94817879]
[1772290026874,16.21977965,81.28,81.255,0.94817879]
[1772290027474,16.21977965,81.28,81.256,12.30678349]
[1772290027883,16.21977965,81.29,81.257,0.94817879]
[1772290028187,12.30183266,81.289,81.257,0.94817879]
[1772290028889,0.88510607,81.295,81.261,0.94817879]
[1772290028890,12.30103082,81.294,81.261,0.94817879]
[1772290029188,0.88510607,81.293,81.261,0.94817879]
[1772290030282,12.30133346,81.292,81.263,0.94817879]
[1772290031885,12.30133346,81.292,81.264,12.30557196]
[1772290032190,0.89812557,81.291,81.264,12.30557196]
[1772290032884,12.30082522,81.296,81.265,0.8604049]
[1772290033089,0.89812557,81.298,81.271,0.8604049]
[1772290033670,20.12569025,81.299,81.24,61.5]
[1772290033671,12.30345234,81.278,81.25,13.1679968]
[1772290033886,13.20157791,81.278,81.25,12.3075919]
[1772290034089,0.89812557,81.286,81.251,0.8604049]
[1772290034279,13.20051838,81.285,81.251,0.8604049]
[1772290034488,0.89812557,81.284,81.251,0.8604049]
[1772290035375,0.89812557,81.289,81.251,0.8604049]
[1772290035693,0.89812557,81.289,81.25,28.52737155]
[1772290035694,7.82536341,81.299,81.261,0.8604049]
[1772290035988,12.30042559,81.298,81.263,0.8604049]
[1772290036590,13.19855116,81.298,81.263,0.8604049]
[1772290037183,0.89812557,81.297,81.263,0.8604049]
[1772290037679,6.05298107,81.28,81.256,12.30670601]
[1772290037873,12.30330097,81.279,81.256,12.30670601]
[1772290038981,13.20142654,81.279,81.256,12.30670601]
[1772290040089,0.89812557,81.278,81.247,12.30800409]
[1772290040297,0.89812557,81.278,81.247,13.16840899]
[1772290040467,0.89812557,81.278,81.248,0.8604049]
[1772290041397,12.30360372,81.277,81.25,0.8604049]
[1772290043395,12.30360372,81.277,81.24,6.05298107]
[1772290043696,0.89812557,81.249,81.219,0.8604049]
[1772290043999,104.58063165,81.277,81.199,3.69383402]
[1772290044000,0.89812557,81.229,81.199,3.69383402]
[1772290044198,0.89812557,81.229,81.195,0.8604049]
[1772290044199,6.05298107,81.22,81.195,0.8604049]
[1772290044378,6.05298107,81.22,81.196,12.31574976]
[1772290044573,6.05298107,81.22,81.197,0.8604049]
[1772290045291,16.24377241,81.22,81.197,0.8604049]
[1772290045470,0.89812557,81.228,81.199,0.8604049]
[1772290046601,0.89812557,81.219,81.191,0.8604049]
[1772290047003,0.89812557,81.219,81.175,30.79736954]
[1772290047004,0.89812557,81.209,81.177,12.31873481]
[1772290047178,16.24377241,81.2,81.175,0.8604049]
[1772290047580,16.24377241,81.2,81.17,0.2]
[1772290047581,0.89812557,81.198,81.17,0.2]
[1772290047884,12.3154226,81.199,81.171,0.8604049]
[1772290048487,16.24377241,81.2,81.172,0.8604049]
[1772290048885,12.3154226,81.199,81.172,0.8604049]
[1772290049087,12.3154226,81.199,81.17,0.2]
[1772290049088,17.14189798,81.19,81.17,0.2]
[1772290049284,0.89812557,81.216,81.171,0.8604049]
[1772290049598,12.31390609,81.209,81.173,0.8604049]
[1772290049791,16.24377241,81.19,81.172,0.8604049]
[1772290049980,16.24377241,81.2,81.172,0.8604049]
[1772290050176,16.24377241,81.21,81.172,0.8604049]
[1772290050400,12.31390609,81.209,81.172,0.8604049]
[1772290050700,13.21203166,81.209,81.172,0.8604049]
[1772290051688,13.21203166,81.209,81.174,0.8604049]
[1772290052311,16.24377241,81.21,81.174,0.8604049]
[1772290052483,12.31256069,81.218,81.181,0.8604049]
[1772290052679,10.66377241,81.21,81.181,0.8604049]
[1772290052884,16.24377241,81.21,81.181,0.8604049]
[1772290053603,0.89812557,81.217,81.181,0.8604049]
[1772290054189,12.31284475,81.216,81.183,0.8604049]
[1772290056505,0.89812557,81.215,81.183,0.8604049]
[1772290057211,12.31284475,81.216,81.17,0.2]
[1772290057212,0.89812557,81.209,81.17,0.2]
[1772290057507,43.09495664,81.216,81.17,0.2]
[1772290057508,0.89812557,81.199,81.17,1.0604049]
[1772290058710,49.24320211,81.23,81.139,3.69383402]
[1772290058711,0.89812557,81.197,81.139,3.17745649]
[1772290058908,3.69383402,81.195,81.08,0.2]
[1772290059111,3.69383402,81.195,81.028,6.40803554]
[1772290059112,16.24377241,81.09,81.081,0.92125465]
[1772290059409,6.43145731,81.069,81.04,16.24377241]
[1772290059915,6.43145731,81.069,81.03,16.44377241]
[1772290059916,0.89812557,81.068,81.03,16.44377241]
[1772290060101,0.89812557,81.068,81.03,0.2]
[1772290060291,0.89812557,81.059,81.03,0.2]
[1772290060612,3.69383402,81.037,80.99,16.24377241]
[1772290060806,0.89982076,81.036,80.99,16.24377241]
[1772290060983,0.89982076,81.029,80.963,12.35121672]
[1772290061184,0.89982076,81.01,80.961,0.90622712]
[1772290061390,17.14359317,81.01,80.961,0.90622712]
[1772290061590,16.24377241,81.0,80.961,0.90622712]
[1772290061791,0.89982076,80.969,80.88,12.36399604]
[1772290061992,0.89982076,80.972,80.88,12.36399604]
[1772290062289,16.24377241,80.96,80.91,16.24377241]
[1772290062597,16.24377241,80.96,80.88,28.60776845]
[1772290062598,12.35097527,80.966,80.93,16.24377241]
[1772290062805,16.04480929,80.966,80.94,16.24377241]
[1772290063000,16.04480929,80.966,80.881,1.23638431]
[1772290063001,0.89982076,80.965,80.92,16.24377241]
[1772290063219,16.24377241,80.93,80.89,16.24377241]
[1772290063510,0.89982076,80.929,80.88,16.36096178]
[1772290063694,0.89982076,80.929,80.873,12.36496985]
[1772290063695,0.89982076,80.929,80.89,16.36096178]
[1772290063885,0.89982076,80.929,80.888,0.90622712]
[1772290064089,12.35097527,80.966,80.88,16.36096178]
[1772290064090,8.03254157,80.962,80.921,0.90815365]
[1772290064290,8.03254157,80.962,80.94,16.36096178]
[1772290064502,0.8660656,80.967,80.931,0.90815365]
[1772290064705,0.8660656,80.967,80.932,12.35605199]
[1772290064894,0.8660656,80.967,80.931,0.90815365]
[1772290064895,0.8660656,80.966,80.919,0.90815365]
[1772290065101,0.8660656,80.959,80.93,16.36096178]
[1772290065312,0.8660656,80.959,80.92,0.90815365]
[1772290065313,0.8660656,80.966,80.92,0.90815365]
[1772290065492,0.8660656,80.966,80.93,16.36096178]
[1772290065698,12.34933807,80.976,80.941,0.90815365]
[1772290065998,4.55989962,80.977,80.941,0.90815365]
[1772290066206,16.36096178,80.96,80.914,0.90815365]
[1772290066408,17.22702738,80.98,80.94,16.36096178]
[1772290066692,0.8660656,80.969,80.928,12.35658996]
[1772290066893,0.8660656,80.977,80.941,0.90815365]
[1772290067229,13.21409023,80.985,80.941,0.90815365]
[1772290067394,5.26619982,80.992,80.914,1.23588007]
[1772290067395,5.26619982,80.992,80.961,0.90815365]
[1772290068505,2.82335598,80.992,80.98,16.36096178]
[1772290068821,2.82335598,80.992,80.933,3.69383402]
[1772290068822,0.96393982,80.991,80.96,16.36096178]
[1772290069601,0.96393982,80.99,80.96,16.36096178]
[1772290070729,0.96393982,80.99,80.961,12.35162609]
[1772290070899,30.85967531,81.012,80.98,16.36096178]
[1772290070900,0.96393982,81.012,80.98,16.36096178]
[1772290071298,1.23257447,81.016,80.961,92.63719567]
[1772290071604,17.34713738,81.01,80.97,16.36096178]
[1772290071915,0.9861756,81.01,80.98,16.36096178]
[1772290072115,0.9861756,81.01,80.961,43.23069131]
[1772290072318,0.9861756,81.01,80.97,16.36096178]
[1772290072827,0.9861756,81.01,80.972,0.02728336]
[1772290073008,0.9861756,81.01,80.98,16.36096178]
[1772290073324,0.9861756,81.008,80.972,0.02728336]
[1772290073523,0.9861756,81.008,80.971,12.35010065]
[1772290073524,1.23257447,81.007,80.971,12.35010065]
[1772290073915,12.34293613,81.018,80.98,16.36096178]
[1772290074210,0.9861756,81.009,80.971,43.22535228]
[1772290074421,0.9861756,81.009,80.98,16.36096178]
[1772290074810,0.9861756,81.009,80.981,12.34857559]
[1772290075409,0.9861756,81.009,80.981,11.99749236]
[1772290075721,0.9861756,81.017,80.981,11.99749236]
[1772290075907,0.9861756,81.015,80.981,11.99749236]
[1772290076100,12.34293613,81.018,80.981,11.99749236]
[1772290076101,0.9861756,81.013,80.981,11.99749236]
[1772290076616,2.21875007,81.013,80.981,11.99749236]
[1772290076920,16.36096178,81.02,80.981,11.99749236]
[1772290076921,0.9861756,81.018,80.981,42.86893133]
[1772290077125,2.21875007,81.017,80.981,42.86893133]
[1772290077418,1.23257447,81.017,80.99,16.36096178]
[1772290077620,0.9861756,81.025,80.982,0.07287543]
[1772290077808,0.9861756,81.023,80.99,16.36096178]
[1772290078320,0.9861756,80.999,80.961,12.35162609]
[1772290078519,0.9861756,80.997,80.961,12.35162609]
[1772290078705,0.9861756,80.995,80.961,12.35162609]
[1772290078906,0.9861756,81.005,80.97,16.36096178]
[1772290079125,0.9861756,81.005,80.962,0.09468089]
[1772290079126,16.36096178,81.0,80.962,0.09468089]
[1772290079322,0.9861756,80.999,80.962,0.09468089]
[1772290079910,1.23257447,81.006,80.98,16.36096178]
[1772290080111,0.9861756,81.01,80.98,16.36096178]
[1772290080824,0.9861756,81.01,80.971,0.10537596]
[1772290080825,12.34430742,81.009,80.971,12.45547661]
[1772290081131,16.36096178,81.02,80.971,12.45547661]
[1772290081132,1.23257447,81.016,80.98,16.36096178]
[1772290081333,61.54559443,81.067,80.971,43.22535228]
[1772290081334,0.9861756,81.039,81.0,16.36096178]
[1772290081707,1.04450314,81.031,81.0,16.36096178]
[1772290081908,1.04450314,81.029,80.99,16.36096178]
[1772290082106,1.04450314,81.029,80.98,16.36096178]
[1772290082327,1.04450314,81.019,80.98,16.36096178]
[1772290082531,16.36096178,81.0,80.971,12.35010065]
[1772290082711,1.04450314,80.999,80.971,12.35010065]
[1772290083032,1.04450314,80.997,80.961,12.35162609]
[1772290083336,1.04450314,80.997,80.961,43.23069131]
[1772290084433,1.04450314,80.989,80.951,0.03240118]
[1772290085016,1.04450314,80.989,80.95,43.23656577]
[1772290085238,3.69383402,81.005,80.92,16.36096178]
[1772290085239,1.04450314,80.959,80.92,16.36096178]
[1772290085537,1.04450314,80.959,80.93,16.36096178]
[1772290085737,1.04450314,80.959,80.921,0.04242477]
[1772290086038,43.21627895,80.988,80.908,12.3597172]
[1772290086039,1.04450314,80.939,80.908,12.3597172]
[1772290086237,1.04450314,80.949,80.908,12.3597172]
[1772290086424,3.69383402,80.965,80.891,12.41463454]
[1772290086425,16.36096178,80.93,80.891,12.41463454]
[1772290086733,3.69383402,80.965,80.891,12.36231471]
[1772290086734,16.36096178,80.92,80.891,12.36231471]
[1772290087035,16.36096178,80.92,80.881,12.36384317]
[1772290087036,1.04450314,80.919,80.881,12.36384317]
[1772290087241,1.04450314,80.919,80.89,16.36096178]